bitfinex/quotes_SOLUSD_20220117
["timestamp","ask_amount","ask_price","bid_price","bid_amount"]
[1642392092891,8.39738,143.08,142.95,70.01]
[1642392093291,8.39738,143.08,142.95,0.25]
[1642392093493,39.03642421,143.07,142.95,48.35740243]
[1642392094022,1.69018434,143.1,142.97,10.4872]
[1642392094394,1.69018434,143.1,142.98,70.01]
[1642392094590,1.69018434,143.1,142.97,0.25]
[1642392094791,45.91991105,143.1,142.98,46.14605375]
[1642392094991,44.22972671,143.1,143.01,10.4852]
[1642392095292,44.22972671,143.1,143.02,37.03381762]
[1642392095496,1.69018434,143.11,143.02,37.03381762]
[1642392096095,1.69018434,143.11,143.02,37.28381762]
[1642392096496,34.83955527,143.1,143.02,47.76801762]
[1642392096692,34.83955527,143.1,143.02,37.28381762]
[1642392097094,10.4847,143.12,143.02,37.28381762]
[1642392097594,10.7347,143.12,143.02,37.28381762]
[1642392097992,36.95823369,143.11,143.02,37.28381762]
[1642392098394,37.20823369,143.11,143.02,37.28381762]
[1642392098594,37.20823369,143.11,143.02,0.25]
[1642392098893,37.20823369,143.11,143.0,10.7347]
[1642392099295,47.69333369,143.11,143.0,10.7347]
[1642392099695,47.69333369,143.11,143.01,45.42847635]
[1642392099901,47.69333369,143.11,143.01,45.67847635]
[1642392100295,0.26,143.1,143.01,45.67847635]
[1642392100494,38.64841803,143.11,143.01,56.16247635]
[1642392101298,36.95823369,143.11,143.02,0.26]
[1642392101895,36.95823369,143.11,143.01,45.42847635]
[1642392102497,1.69018434,143.1,143.01,45.42847635]
[1642392102902,0.26,143.09,143.01,45.67847635]
[1642392103295,1.69018434,143.1,143.01,56.16267635]
[1642392103496,1.69018434,143.1,143.02,0.26]
[1642392103795,1.69018434,143.1,143.02,70.27]
[1642392104195,1.69018434,143.1,143.02,70.52]
[1642392104399,1.69018434,143.11,143.02,76.52]
[1642392104798,1.19018434,143.11,143.02,76.52]
[1642392105196,51.60705314,143.14,143.02,84.93]
[1642392105396,3.09302411,143.12,143.02,84.93]
[1642392105599,3.09302411,143.12,143.02,95.4112]
[1642392107498,7.01236754,143.13,143.02,95.4112]
[1642392108303,3.09302411,143.14,143.02,95.4112]
[1642392109301,3.09302411,143.14,143.02,96.63789805]
[1642392109701,17.59811303,143.14,143.02,95.1612]
[1642392109902,3.34302411,143.14,143.02,14.41]
[1642392110304,0.26,143.13,143.02,14.41]
[1642392110502,10.4847,143.12,143.02,14.41]
[1642392110703,10.4847,143.12,143.02,8.41]
[1642392110912,36.57688283,143.11,143.02,8.41]
[1642392111103,36.57688283,143.11,143.01,45.42847635]
[1642392111302,40.74622626,143.11,143.01,45.42847635]
[1642392111502,43.83925037,143.11,143.01,45.42847635]
[1642392111705,54.07485037,143.11,143.01,45.42847635]
[1642392111905,17.49796754,143.11,143.01,45.42847635]
[1642392112304,17.49796754,143.11,143.01,45.67847635]
[1642392112505,7.01236754,143.1,143.01,45.67847635]
[1642392113408,3.09302411,143.11,143.01,45.67847635]
[1642392114008,3.09302411,143.11,143.02,0.26]
[1642392114210,7.02514896,143.12,143.02,10.7419]
[1642392114411,7.02514896,143.12,143.04,42.54295907]
[1642392114810,7.02514896,143.12,143.05,0.26]
[1642392115513,7.02514896,143.14,143.05,0.26]
[1642392116316,7.02514896,143.14,143.05,70.27]
[1642392116534,3.09302411,143.14,143.05,70.27]
[1642392116736,3.09302411,143.14,143.05,70.52]
[1642392117643,3.09302411,143.15,143.05,70.52]
[1642392118045,3.09302411,143.15,143.05,81.0]
[1642392118245,3.09302411,143.15,143.05,10.99]
[1642392118445,3.09302411,143.15,143.05,16.99]
[1642392118646,3.09302411,143.15,143.05,25.4]
[1642392118846,3.09302411,143.15,143.05,95.41]
[1642392119446,3.09302411,143.15,143.05,25.4]
[1642392119751,24.91886419,143.15,143.05,8.92]
[1642392119945,3.09302411,143.15,143.05,8.92]
[1642392120546,3.09302411,143.14,143.05,8.92]
[1642392121148,3.09302411,143.14,143.05,8.66]
[1642392122250,10.66667265,143.13,143.05,8.66]
[1642392122449,10.91667265,143.13,143.05,8.41]
[1642392122650,3.09302411,143.12,143.05,8.41]
[1642392122850,3.34302411,143.12,143.05,8.41]
[1642392123051,3.09302411,143.12,143.05,8.41]
[1642392123551,3.09302411,143.1,143.05,8.41]
[1642392123949,3.09302411,143.1,143.05,8.66]
[1642392124349,3.09302411,143.1,143.06,0.26]
[1642392124752,3.09302411,143.11,143.05,0.25]
[1642392124950,3.09302411,143.11,143.04,42.79295907]
[1642392125553,3.09302411,143.11,143.04,53.27395907]
[1642392126251,3.09302411,143.11,143.04,129.28395907]
[1642392126451,3.09302411,143.11,143.04,137.69395907]
[1642392126664,3.09302411,143.11,143.04,67.68395907]
[1642392127055,3.09302411,143.12,143.04,61.68395907]
[1642392127956,3.09302411,143.12,143.04,67.68395907]
[1642392128265,3.09302411,143.12,143.04,61.68395907]
[1642392128653,3.09302411,143.12,143.05,70.01]
[1642392128853,3.09302411,143.12,143.06,10.4798]
[1642392129253,3.09302411,143.12,143.06,10.7298]
[1642392129758,3.09302411,143.12,143.07,47.79822929]
[1642392129956,3.09302411,143.12,143.07,48.04822929]
[1642392130158,3.09302411,143.12,143.07,58.52702929]
[1642392130356,3.09302411,143.13,143.07,48.04822929]
[1642392131361,3.09302411,143.13,143.07,58.52712929]
[1642392131759,3.09302411,143.13,143.07,48.04822929]
[1642392132361,0.26,143.12,143.07,48.04822929]
[1642392132559,3.09302411,143.13,143.07,48.04822929]
[1642392132758,2.59302411,143.13,143.07,48.04822929]
[1642392133760,2.59302411,143.13,143.07,58.52702929]
[1642392133961,3.93212485,143.16,143.07,58.52702929]
[1642392134361,3.93212485,143.16,143.07,48.04822929]
[1642392134781,3.93212485,143.16,143.07,58.52732929]
[1642392134965,0.26,143.15,143.07,58.52732929]
[1642392135990,3.93212485,143.16,143.07,58.52732929]
[1642392136292,3.93212485,143.16,143.07,67.44532929]
[1642392136487,47.1313,143.17,143.07,67.44532929]
[1642392136687,47.1313,143.17,143.07,56.96622929]
[1642392137288,47.1313,143.17,143.07,48.04822929]
[1642392137689,59.99802296,143.17,143.07,47.79822929]
[1642392137889,3.979878,143.16,143.07,47.79822929]
[1642392139189,3.979878,143.16,143.07,48.04822929]
[1642392139688,3.979878,143.16,143.07,47.79822929]
[1642392140491,41.85318709,143.15,143.07,47.79822929]
[1642392140691,42.11318709,143.15,143.07,47.79822929]
[1642392140894,42.36318709,143.15,143.07,0.25]
[1642392141093,42.36318709,143.15,143.02,8.41]
[1642392141293,42.36318709,143.15,143.02,14.41]
[1642392141492,0.25,143.15,143.02,14.41]
[1642392141691,3.979878,143.14,143.02,14.41]
[1642392141894,14.712778,143.14,143.02,14.41]
[1642392142393,14.712778,143.14,143.03,40.95089512]
[1642392142793,4.239878,143.13,143.03,40.95089512]
[1642392142994,4.239878,143.13,143.03,41.20089512]
[1642392143794,4.239878,143.13,143.04,0.26]
[1642392144003,3.979878,143.12,143.04,0.26]
[1642392144396,27.89364452,143.12,143.03,51.68299512]
[1642392144595,27.89364452,143.12,143.03,0.25]
[1642392144794,98.15364452,143.12,143.03,0.25]
[1642392144996,28.14364452,143.12,142.99,61.8561]
[1642392145198,28.14364452,143.12,142.99,14.66]
[1642392145396,28.14364452,143.12,142.99,14.41]
[1642392145697,28.14364452,143.12,143.0,48.72976676]
[1642392145998,10.4863,143.1,143.0,54.72976676]
[1642392146397,10.7363,143.1,143.0,54.72976676]
[1642392146799,10.7363,143.1,143.0,54.97976676]
[1642392146996,3.979878,143.09,143.0,54.97976676]
[1642392147197,39.36161243,143.09,143.0,54.97976676]
[1642392147801,39.36161243,143.09,143.0,6.0]
[1642392147802,50.09831243,143.09,143.0,6.0]
[1642392147997,8.65738,143.08,142.96,6.0]
[1642392148399,14.90738,143.08,142.95,11.29318044]
[1642392148600,8.90738,143.08,142.96,1.22318044]
[1642392148797,8.90738,143.08,142.96,71.23318044]
[1642392148798,10.7475,143.08,142.96,71.23318044]
[1642392148998,3.98044786,143.07,142.97,10.07]
[1642392149401,3.98044786,143.07,142.98,1.22318044]
[1642392149798,14.66768655,143.06,142.99,37.4679364]
[1642392149999,14.66768655,143.06,142.95,11.29318044]
[1642392150300,14.66768655,143.06,142.9,34.9634]
[1642392150301,14.66768655,143.06,142.91,59.52638044]
[1642392150599,20.66768655,143.06,142.91,59.52638044]
[1642392150799,10.4896,143.05,142.92,347.53836805]
[1642392151101,10.4896,143.05,142.93,41.0525682]
[1642392151302,10.4896,143.05,142.94,0.26]
[1642392151900,10.7396,143.05,142.94,0.26]
[1642392152304,16.7396,143.05,142.94,0.26]
[1642392152500,10.7396,143.05,142.94,0.26]
[1642392152700,10.4896,143.05,142.94,0.26]
[1642392152903,10.4883,143.07,142.94,92.05228044]
[1642392153101,10.4883,143.07,142.94,22.04228044]
[1642392153300,10.4883,143.07,142.94,28.29228044]
[1642392154601,10.07,143.08,142.94,34.55228044]
[1642392154900,33.1996,143.09,142.94,104.56228044]
[1642392155301,22.7128,143.09,142.94,104.56228044]
[1642392155703,28.43930881,143.12,142.94,104.56228044]
[1642392155902,29.3602,143.12,142.95,24.6212]
[1642392156104,6.0,143.12,143.0,10.4828]
[1642392156403,11.07910881,143.13,143.01,0.26]
[1642392156602,6.0,143.13,143.02,58.14726349]
[1642392157004,52.3624,143.14,143.03,0.26]
[1642392157203,5.07910881,143.16,143.03,79.10718044]
[1642392157403,5.07910881,143.16,143.04,10.4824]
[1642392157603,5.07910881,143.16,143.05,70.01]
[1642392157802,5.07910881,143.16,143.06,10.07]
[1642392158007,5.07910881,143.16,143.06,65.07175662]
[1642392158203,5.07910881,143.16,143.06,71.32175662]
[1642392158404,5.07910881,143.16,143.06,75.80235662]
[1642392158803,0.26,143.15,143.06,75.80235662]
[1642392159205,4.21815924,143.17,143.06,75.80235662]
[1642392159404,0.26,143.16,143.06,75.80235662]
[1642392160004,46.3938,143.18,143.06,75.80235662]
[1642392160207,46.3938,143.18,143.07,0.26]
[1642392160407,52.3938,143.18,143.07,0.26]
[1642392160612,62.8739,143.18,143.07,10.7399]
[1642392160808,52.3938,143.18,143.07,10.7399]
[1642392161107,46.3938,143.18,143.07,10.9899]
[1642392161307,46.6438,143.18,143.07,10.9899]
[1642392161536,3.96766672,143.15,143.07,10.9899]
[1642392162309,3.96766672,143.17,143.08,80.08]
[1642392162506,3.96766672,143.17,143.1,10.4778]
[1642392162709,3.96766672,143.17,143.1,18.4888]
[1642392163007,3.96766672,143.17,143.1,18.7388]
[1642392164207,26.79318436,143.17,143.09,39.18819768]
[1642392164410,0.26,143.16,143.09,39.18819768]
[1642392164609,0.26,143.16,143.06,10.07]
[1642392164816,0.26,143.16,143.06,10.32]
[1642392165210,0.26,143.16,143.06,10.07]
[1642392165412,10.7414,143.16,143.06,20.5505]
[1642392165610,10.7414,143.16,143.07,41.30097009]
[1642392165814,3.96766672,143.15,143.07,41.30097009]
[1642392166312,4.21766672,143.15,143.07,41.30097009]
[1642392167310,4.21766672,143.15,143.07,41.55097009]
[1642392167512,3.96766672,143.14,143.07,41.55097009]
[1642392167912,3.96766672,143.14,143.08,0.26]
[1642392168913,3.96766672,143.14,143.08,18.5151]
[1642392169342,9.04677553,143.17,143.08,18.7651]
[1642392170243,9.04677553,143.17,143.08,24.7651]
[1642392170445,9.04677553,143.19,143.08,24.7651]
[1642392170644,9.29677553,143.19,143.08,24.7651]
[1642392170847,9.29677553,143.19,143.08,24.5051]
[1642392172347,9.29677553,143.19,143.09,10.4784]
[1642392172548,9.29677553,143.19,143.1,40.9135214]
[1642392173150,9.29677553,143.19,143.1,41.1635214]
[1642392173350,9.29677553,143.19,143.1,51.6412214]
[1642392173547,9.29677553,143.19,143.11,0.26]
[1642392173748,9.29677553,143.19,143.11,5.839]
[1642392173948,9.29677553,143.19,143.11,6.089]
[1642392174349,9.04677553,143.19,143.11,6.089]
[1642392174951,9.04677553,143.19,143.11,0.51]
[1642392175151,9.04677553,143.19,143.11,0.25]
[1642392175356,9.04677553,143.19,143.1,41.1635214]
[1642392175551,3.96766672,143.19,143.1,40.9135214]
[1642392175752,74.22766672,143.19,143.08,10.07]
[1642392175954,0.26,143.18,143.08,10.32]
[1642392176452,0.26,143.18,143.08,0.25]
[1642392176651,10.4805,143.17,143.03,43.6865]
[1642392176852,49.58422947,143.16,143.04,34.92368699]
[1642392177252,0.25,143.16,143.04,34.92368699]
[1642392177653,0.25,143.16,143.05,0.26]
[1642392177851,4.21766672,143.16,143.04,34.92368699]
[1642392178461,10.4825,143.15,143.04,34.92368699]
[1642392178654,10.4825,143.15,143.04,41.17368699]
[1642392178855,14.70016672,143.15,143.04,41.17368699]
[1642392179056,14.70016672,143.15,143.05,0.26]
[1642392179255,3.96766672,143.15,143.05,0.26]
[1642392179454,3.96766672,143.15,143.06,10.07]
[1642392179655,22.72,143.17,143.06,10.07]
[1642392179656,33.2009,143.17,143.06,10.07]
[1642392179857,37.04032481,143.16,143.07,37.83260902]
[1642392180058,37.04032481,143.16,143.08,10.07]
[1642392180305,37.29032481,143.16,143.08,10.07]
[1642392180758,3.96978055,143.15,143.08,10.07]
[1642392180964,4.47978055,143.15,143.08,10.07]
[1642392181558,14.96218055,143.15,143.08,10.07]
[1642392181956,14.71218055,143.15,143.08,10.32]
[1642392182557,10.7424,143.15,143.08,10.07]
[1642392182757,0.26,143.15,143.08,10.07]
[1642392182957,39.2009,143.17,143.08,10.32]
[1642392183160,5.07910881,143.18,143.08,11.54318044]
[1642392183360,5.07910881,143.18,143.09,0.26]
[1642392183565,5.07910881,143.18,143.1,10.07]
[1642392183761,5.07910881,143.18,143.1,11.29318044]
[1642392183961,5.07910881,143.18,143.11,0.26]
[1642392184167,5.07910881,143.18,143.12,50.31312802]
[1642392184361,3.97648261,143.14,143.13,0.26]
[1642392184562,3.97648261,143.14,143.13,16.39439994]
[1642392184962,3.97648261,143.14,143.13,16.64439994]
[1642392185465,5.07910881,143.18,143.13,27.12039994]
[1642392185662,3.97648261,143.22,143.13,27.12039994]
[1642392185863,4.22648261,143.22,143.13,27.12039994]
[1642392186264,3.97648261,143.22,143.13,27.12039994]
[1642392186664,4.22648261,143.22,143.13,27.12039994]
[1642392187064,4.22648261,143.22,143.13,16.64439994]
[1642392187263,0.26,143.21,143.13,16.64439994]
[1642392187667,4.23648261,143.21,143.13,16.64439994]
[1642392188067,4.23648261,143.21,143.13,16.13439994]
[1642392188468,0.51,143.21,143.13,16.13439994]
[1642392188868,0.25,143.21,143.13,16.13439994]
[1642392189471,10.4781,143.21,143.13,16.13439994]
[1642392189672,3.9736722,143.2,143.13,16.13439994]
[1642392189876,4.2236722,143.2,143.13,16.13439994]
[1642392190673,4.2236722,143.2,143.13,16.38439994]
[1642392190873,0.26,143.19,143.13,16.38439994]
[1642392191276,4.2336722,143.19,143.13,16.38439994]
[1642392191474,3.9736722,143.19,143.13,16.13439994]
[1642392191677,0.26,143.18,143.13,16.13439994]
[1642392192879,0.26,143.19,143.13,16.38439994]
[1642392193078,0.26,143.19,143.13,16.13439994]
[1642392193278,0.26,143.19,143.13,16.38439994]
[1642392193681,3.7336722,143.2,143.13,16.38439994]
[1642392193882,80.4878,143.21,143.13,16.38439994]
[1642392194082,80.7378,143.21,143.13,16.38439994]
[1642392194282,10.7278,143.21,143.13,16.38439994]
[1642392194483,5.07910881,143.23,143.13,22.38439994]
[1642392194683,5.07910881,143.23,143.13,16.38439994]
[1642392194883,5.32910881,143.23,143.13,16.38439994]
[1642392195302,5.32910881,143.23,143.13,22.38439994]
[1642392195502,10.7265,143.23,143.13,22.38439994]
[1642392195703,10.7265,143.23,143.13,22.13439994]
[1642392195906,10.7265,143.23,143.13,22.38439994]
[1642392196803,10.4765,143.23,143.13,16.13439994]
[1642392197004,10.4765,143.23,143.13,16.38439994]
[1642392198208,10.7265,143.23,143.13,16.38439994]
[1642392199910,80.7365,143.23,143.13,16.38439994]
[1642392200114,80.7365,143.23,143.13,16.13439994]
[1642392200313,1.70077588,143.22,143.13,6.06439994]
[1642392200512,10.4806,143.2,143.13,3.03219997]
[1642392200713,10.4806,143.2,143.07,35.0611]
[1642392200913,16.7306,143.2,143.07,35.0611]
[1642392201113,20.58513601,143.19,143.08,43.54095194]
[1642392201313,96.84513601,143.19,143.08,43.79095194]
[1642392203117,76.26,143.19,143.08,43.79095194]
[1642392203518,86.7395,143.19,143.08,43.79095194]
[1642392205117,16.4795,143.19,143.08,43.79095194]
[1642392205315,6.0,143.19,143.08,43.79095194]
[1642392205516,6.0,143.19,143.08,53.86095194]
[1642392205715,34.4867,143.21,143.08,53.86095194]
[1642392205716,40.4867,143.21,143.08,53.86095194]
[1642392205917,40.4867,143.21,143.08,62.00095194]
[1642392206515,45.56580881,143.21,143.08,72.47875194]
[1642392206716,39.56580881,143.21,143.08,72.47875194]
[1642392206918,39.81580881,143.21,143.08,78.47875194]
[1642392207319,39.81580881,143.21,143.08,72.22875194]
[1642392207715,39.56580881,143.21,143.08,72.22875194]
[1642392208017,39.56580881,143.21,143.08,70.08875194]
[1642392208218,0.30421141,143.18,143.08,43.54095194]
[1642392208417,10.4809,143.17,143.08,43.54095194]
[1642392208716,12.18167588,143.17,143.08,43.54095194]
[1642392208917,1.70077588,143.16,143.08,43.54095194]
[1642392209218,6.25,143.17,143.08,43.54095194]
[1642392209418,0.25,143.17,143.08,43.54095194]
[1642392209617,6.25,143.17,143.08,43.79095194]
[1642392210018,0.25,143.17,143.08,43.79095194]
[1642392210420,10.32,143.18,143.08,43.79095194]
[1642392210824,10.32,143.18,143.08,43.54095194]
[1642392211022,12.02077588,143.18,143.08,43.54095194]
[1642392211418,22.50087588,143.18,143.08,43.54095194]
[1642392211621,70.01,143.17,143.04,10.07]
[1642392211821,70.01,143.17,143.04,6.0]
[1642392211822,8.39738,143.16,143.04,6.0]
[1642392212023,16.09815588,143.16,143.04,0.25]
[1642392212220,16.34815588,143.16,143.02,16.07]
[1642392212621,23.80976957,143.15,143.04,10.4808]
[1642392212820,6.0,143.15,143.04,10.4808]
[1642392213021,6.25,143.15,143.04,10.4808]
[1642392213419,6.25,143.15,143.05,10.74]
[1642392213620,0.25,143.15,143.05,10.74]
[1642392213820,6.25,143.15,143.05,10.99]
[1642392215021,6.25,143.15,143.05,10.74]
[1642392215223,0.25,143.15,143.05,0.26]
[1642392215428,6.0,143.15,143.04,0.26]
[1642392215822,0.25,143.15,143.04,0.26]
[1642392216523,0.25,143.15,143.04,10.7408]
[1642392216724,0.25,143.15,143.04,10.9908]
[1642392216924,14.64738,143.16,143.04,10.9908]
[1642392217425,14.64738,143.16,143.04,21.0608]
[1642392217825,6.0,143.16,143.04,21.0608]
[1642392218227,33.2627,143.17,143.04,27.0608]
[1642392219226,33.5127,143.17,143.04,27.0608]
[1642392219427,23.0318,143.17,143.04,27.0608]
[1642392219829,22.7818,143.17,143.04,27.0608]
[1642392220028,24.5392,143.18,143.04,27.0608]
[1642392220629,24.5392,143.18,143.04,50.9456]
[1642392221228,24.7892,143.18,143.04,50.9456]
[1642392221556,24.5392,143.18,143.05,70.01]
[1642392221730,10.4794,143.19,143.06,10.07]
[1642392221930,10.4794,143.19,143.06,27.0594]
[1642392222331,10.4794,143.19,143.06,16.58]
[1642392222532,5.07910881,143.2,143.07,1.21643777]
[1642392222831,78.1975,143.25,143.09,42.87589849]
[1642392222832,5.07910881,143.22,143.09,42.87589849]
[1642392223031,5.07910881,143.22,143.1,90.8159]
[1642392223239,5.07910881,143.22,143.1,22.02233777]
[1642392223433,5.07910881,143.22,143.12,45.69232127]
[1642392223632,5.07910881,143.22,143.13,10.07]
[1642392223832,78.1975,143.25,143.13,16.58]
[1642392224032,52.96578015,143.26,143.13,16.58]
[1642392224436,69.69158015,143.26,143.13,27.0553]
[1642392224637,32.66136403,143.25,143.13,26.5453]
[1642392224835,47.30874403,143.25,143.13,16.07]
[1642392225035,57.37874403,143.25,143.12,45.69232127]
[1642392225234,57.37874403,143.25,143.12,45.94232127]
[1642392225638,10.4768,143.24,143.12,45.94232127]
[1642392225839,37.11353692,143.19,143.12,45.69232127]
[1642392226337,43.36353692,143.19,143.12,45.69232127]
[1642392226734,43.36353692,143.19,143.08,10.07]
[1642392226936,43.36353692,143.19,143.02,1.91048732]
[1642392226937,10.38071791,143.18,143.02,1.91048732]
[1642392227139,43.95891791,143.18,143.02,11.98048732]
[1642392227336,50.20891791,143.18,143.02,11.98048732]
[1642392227735,49.70891791,143.18,143.03,35.35120001]
[1642392227941,10.4832,143.15,143.03,45.83460001]
[1642392228142,10.4832,143.15,143.03,46.08460001]
[1642392228344,10.7332,143.15,143.03,56.15460001]
[1642392229378,0.25,143.15,143.05,10.4819]
[1642392229579,10.4817,143.17,143.06,38.12153877]
[1642392229783,16.4817,143.17,143.06,38.12153877]
[1642392229982,16.4817,143.17,143.07,0.26]
[1642392230581,10.4817,143.17,143.07,0.26]
[1642392230780,23.5082,143.18,143.07,20.8107]
[1642392231181,23.5082,143.18,143.07,27.0607]
[1642392231881,3.96628015,143.2,143.07,27.0607]
[1642392232080,3.96628015,143.2,143.08,1.21643777]
[1642392232282,3.96628015,143.2,143.09,10.07]
[1642392232484,26.84958015,143.21,143.11,10.4773]
[1642392232781,26.84958015,143.21,143.12,45.0316798]
[1642392232981,27.09958015,143.21,143.12,45.0316798]
[1642392233180,27.09958015,143.21,143.12,45.2816798]
[1642392233381,23.1333,143.21,143.12,45.2816798]
[1642392234480,33.362,143.21,143.12,45.2816798]
[1642392234681,22.8833,143.21,143.12,55.7586798]
[1642392234885,3.96628015,143.22,143.13,0.26]
[1642392235281,3.96628015,143.22,143.13,10.33]
[1642392235681,23.6778,143.23,143.13,86.59]
[1642392235882,0.25,143.23,143.13,97.0663]
[1642392236082,3.96628015,143.24,143.13,98.28273777]
[1642392237383,5.07910881,143.28,143.14,105.0]
[1642392237582,5.07910881,143.28,143.18,10.4702]
[1642392237783,6.0,143.28,143.19,10.07]
[1642392237983,6.0,143.3,143.2,45.53010459]
[1642392238181,5.07910881,143.31,143.2,45.53010459]
[1642392238182,5.07910881,143.31,143.21,10.07]
[1642392238381,5.07910881,143.31,143.21,22.841]
[1642392239284,6.0,143.31,143.21,92.851]
[1642392239484,63.5035,143.35,143.22,10.469]
[1642392239682,63.5035,143.35,143.22,20.539]
[1642392239683,57.5035,143.35,143.22,20.539]
[1642392239886,57.5035,143.35,143.23,0.26]
[1642392240283,47.035,143.35,143.23,0.26]
[1642392240585,47.035,143.35,143.24,10.07]
[1642392240783,34.3203594,143.34,143.25,10.4672]
[1642392240987,34.3203594,143.34,143.23,35.52564031]
[1642392241184,42.7177394,143.34,143.23,35.52564031]
[1642392241986,70.01,143.33,143.23,35.52564031]
[1642392242183,42.9677394,143.34,143.23,35.52564031]
[1642392242487,8.39738,143.34,143.23,35.52564031]
[1642392242886,14.39738,143.34,143.23,35.52564031]
[1642392243285,62.45162457,143.34,143.23,35.52564031]
[1642392243487,72.92102457,143.34,143.23,35.52564031]
[1642392243884,72.92102457,143.34,143.22,10.4697]
[1642392243885,73.17102457,143.34,143.2,20.5413]
[1642392244084,73.17102457,143.34,143.16,10.07]
[1642392244085,11.77077588,143.33,143.16,10.07]
[1642392244285,34.9184,143.29,143.16,10.07]
[1642392244486,10.4755,143.28,143.16,10.07]
[1642392244885,16.7255,143.28,143.17,40.22687514]
[1642392245088,10.7255,143.28,143.17,40.22687514]
[1642392245484,10.7255,143.28,143.17,50.70037514]
[1642392245687,10.7255,143.28,143.17,120.71037514]
[1642392245886,0.25,143.28,143.17,120.71037514]
[1642392246087,0.25,143.28,143.18,10.07]
[1642392246488,10.4722,143.3,143.18,10.32]
[1642392246686,10.4722,143.3,143.19,0.26]
[1642392246888,10.4722,143.3,143.2,10.07]
[1642392247087,10.4722,143.3,143.21,42.96077213]
[1642392247289,10.4722,143.3,143.21,43.22077213]
[1642392247886,16.7222,143.3,143.21,43.22077213]
[1642392248088,41.05260666,143.29,143.2,10.07]
[1642392248288,49.44998666,143.29,143.11,127.04456668]
[1642392248490,57.40076254,143.29,143.15,10.07]
[1642392248690,67.47076254,143.29,143.14,6.0]
[1642392248909,67.47076254,143.29,143.13,6.0]
[1642392249088,67.47076254,143.29,143.14,45.99048833]
[1642392249295,65.26998666,143.29,143.14,45.99048833]
[1642392249495,65.26998666,143.29,143.14,51.99048833]
[1642392250095,70.01,143.28,143.14,51.99048833]
[1642392250298,10.4776,143.24,143.14,52.24048833]
[1642392250606,16.4776,143.24,143.14,46.24048833]
[1642392250797,16.7276,143.24,143.14,46.24048833]
[1642392250996,16.4776,143.24,143.14,46.24048833]
[1642392251198,6.0,143.24,143.15,1.21456668]
[1642392251498,32.8094,143.34,143.15,20.35056668]
[1642392251701,8.39738,143.33,143.15,20.35056668]
[1642392251898,14.39738,143.33,143.16,1.47456668]
[1642392252099,14.39738,143.33,143.18,70.01]
[1642392252301,10.4704,143.32,143.19,10.33]
[1642392252500,14.39738,143.33,143.19,11.54456668]
[1642392252699,14.39738,143.33,143.19,17.79456668]
[1642392253002,8.39738,143.33,143.2,43.44180357]
[1642392253199,8.64738,143.33,143.2,53.51180357]
[1642392253401,8.64738,143.33,143.21,0.26]
[1642392253600,10.4709,143.32,143.21,0.26]
[1642392254200,8.39738,143.33,143.21,0.26]
[1642392254402,8.39738,143.33,143.22,10.07]
[1642392254805,8.39738,143.33,143.25,10.4677]
[1642392255105,8.39738,143.33,143.26,41.19166296]
[1642392255324,8.39738,143.33,143.26,41.44166296]
[1642392255535,8.39738,143.33,143.26,41.19166296]
[1642392255830,8.39738,143.33,143.26,41.44166296]
[1642392256028,8.39738,143.33,143.26,41.19166296]
[1642392256427,8.39738,143.33,143.26,51.65826296]
[1642392257732,8.39738,143.33,143.26,51.90826296]
[1642392258334,10.4663,143.38,143.27,10.7258]
[1642392258734,10.4663,143.38,143.27,10.9758]
[1642392258936,16.4663,143.38,143.27,10.9758]
[1642392259935,6.0,143.38,143.27,10.9758]
[1642392260135,6.25,143.38,143.27,10.9758]
[1642392260338,0.25,143.38,143.27,10.9758]
[1642392260536,0.25,143.38,143.3,10.4641]
[1642392260537,6.0,143.38,143.3,10.4641]
[1642392260937,6.0,143.38,143.31,0.26]
[1642392261136,54.2873,143.39,143.31,0.26]
[1642392261337,6.0,143.39,143.31,0.26]
[1642392261536,6.0,143.39,143.31,45.49503928]
[1642392261736,16.4647,143.4,143.31,45.49503928]
[1642392261938,24.86208,143.4,143.31,45.49503928]